Cogmind - Beta 12 X1 @@@ ROGUE MODE // 2022.07.31 @ 12:55:00 Player: Runia Result: Smashed by cave-in Performance ------------- Evolutions (0) 0 Regions Visited (2) 400 Robots Destroyed (28) 140 Value Destroyed (519) 519 Prototype IDs (0) 0 Alien Tech Used (0) 0 Bonus (7) 7 TOTAL SCORE: 1066 Bonus ------- Follower Combat Kills 7 Cogmind --------- Core Integrity 0/250 Matter 239/300 Energy 100/100 System Corruption 6% Temperature Cool (0) Movement Rolling (140) Ox4 Location -10/Mines Parts ------- > --- POWER (1) -------- (None) > --- PROPULSION (2) --- Wheel > --- UTILITY (2) ------ High-capacity Storage Unit Seismic Detector > --- WEAPON (2) ------- Beam Cannon Light Assault Rifle > --- INVENTORY (20) --- Ion Engine Heat Sink Medium Matter Pod (100) Structural Scanner Recalibrator Decoy Drone Bay Beamcaster Light Assault Rifle Light Assault Rifle Light Assault Rifle Light Assault Rifle Light Assault Rifle Light Assault Rifle Grenade Launcher Mining Laser Peak State ------------ > --- POWER ------------ Light Ion Engine > --- PROPULSION ------- Light Treads Wheel > --- UTILITY ---------- High-capacity Storage Unit Seismic Detector > --- WEAPON ----------- Beam Cannon Light Assault Rifle > --- INVENTORY -------- Ion Engine Wheel Heat Sink Medium Matter Pod Structural Scanner Recalibrator Decoy Drone Bay Light Assault Rifle Light Assault Rifle Light Assault Rifle Light Assault Rifle Light Assault Rifle Light Assault Rifle Grenade Launcher [Rating: 10] Favorites ----------- Power Light Ion Engine Engine Light Ion Engine Propulsion Light Treads Treads Light Treads Leg Aluminum Leg Wheel Wheel Utility High-capacity Storage Unit Device Seismic Detector Storage High-capacity Storage Unit Processor Visual Processing Unit Protection Propulsion Shielding Weapon Light Assault Rifle Energy Gun Medium Laser Energy Cannon Beam Cannon Ballistic Gun Light Assault Rifle Launcher Grenade Launcher Special Weapon Mining Laser Build | -11 -10 -10 ------- Run | Scr Mat Min Slots Evolved . | . . . Power . | . . . Propulsion . | . . . Utility . | . . . Weapon . | . . . Parts Attached 26 | 2 18 6 Power 5 | . 4 1 Engine 5 | . 4 1 Core . | . . . Reactor . | . . . Propulsion 7 | 2 4 1 Treads 5 | 2 3 . Leg . | . . . Wheel 2 | . 1 1 Hover . | . . . Flight . | . . . Utility 5 | . 5 . Device 1 | . 1 . Storage 2 | . 2 . Processor 1 | . 1 . Hackware . | . . . Protection 1 | . 1 . Artifact . | . . . Weapon 9 | . 5 4 Energy Gun . | . . . Energy Cannon 2 | . 1 1 Ballistic Gun 5 | . 4 1 Ballistic Cannon . | . . . Launcher 1 | . . 1 Special Weapon 1 | . . 1 Impact Weapon . | . . . Slashing Weapon . | . . . Piercing Weapon . | . . . Special Melee Weapon . | . . . Unidentified Prototypes . | . . . Parts Lost 5 | . 2 3 Power 1 | . . 1 Propulsion 3 | . 1 2 Utility 1 | . 1 . Weapon . | . . . Highest Loss Streak 2 | . 1 2 To Critical Strikes . | . . . Average Slot Usage (%) 97 | . 96 99 Engine 14 | . 14 14 Treads 21 | . 25 12 Wheel 6 | . 2 15 Device 8 | . 5 14 Storage 14 | . 14 14 Processor 3 | . 4 . Energy Cannon 5 | . 1 13 Ballistic Gun 20 | . 24 12 Naked Turns . | . . . Heaviest Build 48 | 11 48 48 Greatest Support 40 | 40 40 10 Greatest Overweight (x) 4 | . 4 4 Average Overweight (x) 2 | . 1 4 Largest Inventory Capacity 20 | 8 20 20 Average Capacity 19 | 8 19 20 Most Carried 18 | 6 13 18 Average Carried 11 | 4 8 16 Final Capacity 20 | 8 20 20 Final Carried 16 | 2 12 16 Class Distribution -------------------- 100% | Mutant Dominant Class ---------------- Mutant | -10/Materials Mutant | -10/Mines Resources | -11 -10 -10 ----------- Run | Scr Mat Min Matter Collected 773 | 191 510 72 Remotely . | . . . Salvage Created 852 | . 751 101 Parts 53 | . 46 7 Haulers Intercepted 2 | . 2 . Recyclers Shooed 2 | . 2 . Parts Field Recycled . | . . . Retrieved Matter . | . . . Parts Self-Destructed . | . . . Prevented . | . . . Kills | -11 -10 -10 ------- Run | Scr Mat Min Combat Hostiles Destroyed 20 | . 16 4 Guns 16 | . 16 . Cannons 1 | . . 1 AOE 3 | . . 3 Classes Destroyed 8 | . 7 1 Builder 1 | . . 1 Hauler 2 | . 2 . Recycler 2 | . 1 1 Mechanic 1 | . 1 . Operator 1 | . 1 . Watcher 1 | . 1 . Swarmer 10 | . 6 4 Grunt 10 | . 10 . Best Kill Streak 5 | . 3 5 Combat Bots Only 3 | . 3 3 Max Kills in Single Turn 2 | . 1 2 Gunslinging . | . . . Exploded 1 | . . 1 Melee . | . . . Uniques/NPCs Destroyed . | . . . Combat | -11 -10 -10 -------- Run | Scr Mat Min Damage Taken 1181 | . 867 314 Core 261 | . 175 86 Absorbed by Shields . | . . . Redirected to Shielding 50 | . 50 . Core Remaining (%) 100 | 100 . . Volleys Fired 119 | . 108 11 Largest 2 | . 2 2 Hottest 100 | . 70 100 Shots Fired 235 | . 217 18 Gun 224 | . 217 7 Cannon 6 | . . 6 Launcher 4 | . . 4 Special 1 | . . 1 Kinetic 207 | . 200 7 Thermal 24 | . 17 7 Explosive 4 | . . 4 Electromagnetic . | . . . Robot Hit Streak 10 | . 10 5 Robot Miss Streak 4 | . 4 3 Penetration Max . | . . . Secondary Targets 1 | . 1 . Max Gunslinging Chain 1 | . 1 . Shots Hit Robots 135 | . 125 10 Core Hits 59 | . 51 8 Critical Kills . | . . . Critical Parts Destroyed . | . . . Critical Strikes 2 | . 2 . Burn 2 | . 2 . Melee Attacks . | . . . Impact . | . . . Slashing . | . . . Piercing . | . . . Sneak Attacks . | . . . Combat Hostiles . | . . . Follow-up Attacks . | . . . Damage Inflicted 1446 | . 1081 365 Guns 1112 | . 1081 31 Cannons 72 | . . 72 Explosions 262 | . . 262 Melee . | . . . Ramming . | . . . Kinetic 973 | . 942 31 Thermal 211 | . 139 72 Explosive 262 | . . 262 Electromagnetic . | . . . Impact . | . . . Slashing . | . . . Piercing . | . . . Highest Corruption 3 | . 3 3 Average Corruption 2 | . 2 3 Corruption Purged . | . . . Corruption Blocked . | . . . Effects 33 | . 18 15 Message Errors 7 | . 3 4 Matter Fused 7 | . 3 4 Heat Flow Errors 7 | . 4 3 Energy Discharges 3 | . 1 2 Data Loss (minor) 3 | . 2 1 Data Loss (major) 1 | . 1 . Misfires 3 | . 2 1 Alerts 1 | . 1 . Weapon Failures 1 | . 1 . Overload Shots . | . . . Overflow Damage . | . . . Projectiles . | . . . Explosions . | . . . Melee . | . . . Knockbacks . | . . . Impact . | . . . Kinetic . | . . . Secondary . | . . . Self-Inflicted Damage 22 | . . 22 Shots 1 | . . 1 Rammed . | . . . Targets Rammed . | . . . Kicked . | . . . Crushed . | . . . Highest Temperature 271 | . 245 271 Average Temperature 94 | . 96 89 Received Heat Transfer 375 | . 375 . Siege Activations . | . . . Robots Corrupted . | . . . Combat Hostiles . | . . . Parts Fried . | . . . Impact Corruptions . | . . . Robots Melted . | . . . Combat Hostiles . | . . . Parts Melted . | . . . Heat Transferred 703 | . 555 148 Parts Sabotaged . | . . . Parts Stolen . | . . . Parts Stripped . | . . . Power Chain Reactions . | . . . Missiles Intercepted . | . . . Alert | -11 -10 -10 ------- Run | Scr Mat Min Peak Influence 179 | . 179 125 Initial 35 | . . 35 Average 93 | . 97 83 Maximum Alert Level . | . . . Low Security (%) 100 | 100 100 100 Level 1 . | . . . Level 2 . | . . . Level 3 . | . . . Level 4 . | . . . Level 5 . | . . . High Security . | . . . Max Security . | . . . Squads Dispatched 3 | . 3 . Investigation 1 | . 1 . Extermination . | . . . Reinforcement 2 | . 2 . Assault . | . . . Garrison . | . . . Intercept . | . . . Searches Triggered . | . . . Construction Impeded . | . . . Haulers Reinforced . | . . . Active Scanning Responses . | . . . Cargo Convoy Interrupts . | . . . Stealth | -11 -10 -10 --------- Run | Scr Mat Min Distress Signals 3 | . 3 . Communications Jammed . | . . . Distress Signals . | . . . Times Spotted 42 | . 35 7 Peak Tracking Total 3 | . 3 3 Tactical Retreats 4 | . 3 1 Traps | -11 -10 -10 ------- Run | Scr Mat Min Traps Triggered 4 | . 4 . Indirectly . | . . . Trap Hack Attempts . | . . . Triggered . | . . . Disarmed . | . . . Reprogrammed . | . . . Reused . | . . . Traps Extracted . | . . . Installed . | . . . Triggered . | . . . Machines | -11 -10 -10 ---------- Run | Scr Mat Min Machines Disabled . | . . . Max in Single Turn . | . . . Machines Sabotaged . | . . . Garrisons Compromised . | . . . Overloaded Fab Kills . | . . . Hacking | -11 -10 -10 --------- Run | Scr Mat Min Machines Accessed 8 | . 7 1 Terminals 6 | . 6 . Fabricators . | . . . Repair Stations 1 | . 1 . Recycling Units . | . . . Scanalyzers . | . . . Garrison Access . | . . . Total Hacks 19 | . 18 1 Successful 11 | . 10 1 Failed 7 | . 7 . Catastrophic 1 | . 1 . Database Lockouts 1 | . 1 . Manual 7 | . 7 . Terminals 15 | . 15 . Fabricators . | . . . Repair Stations 3 | . 3 . Recycling Units . | . . . Scanalyzers . | . . . Garrison Access . | . . . Terminal Hacks 10 | . 9 1 Part Schematic 1 | . 1 . Robot Analysis 1 | . 1 . Open Door 1 | . . 1 Terminal Index 1 | . 1 . Locate Traps 1 | . 1 . Patrol Status 1 | . 1 . Hauler Manifests 1 | . 1 . Zone Layout 3 | . 3 . Fabricator Hacks . | . . . Repair Station Hacks 1 | . 1 . Scan Component 1 | . 1 . Recycling Unit Hacks . | . . . Scanalyzer . | . . . Garrison Access Hacks . | . . . Unauthorized Hacks . | . . . Terminals . | . . . Fabricators . | . . . Repair Stations . | . . . Recycling Units . | . . . Scanalyzers . | . . . Garrison Access . | . . . Data Cores Recovered . | . . . Used . | . . . Hacking Detections 3 | . 3 . Full Trace Events . | . . . Feedback Events . | . . . Feedback Blocked . | . . . Robot Schematics Acquired . | . . . Robots Built . | . . . Authchips . | . . . Time . | . . . Total Robot Build Rating . | . . . Part Schematics Acquired 1 | . 1 . Parts Built . | . . . Authchips . | . . . Time . | . . . Total Part Build Rating . | . . . Parts Repaired . | . . . Time . | . . . Parts Recycled . | . . . Recycled Matter . | . . . Retrieved Matter . | . . . Retrieved Components . | . . . Parts Scanalyzed . | . . . Part Schematics Acquired . | . . . Parts Damaged . | . . . Bothacking | -11 -10 -10 ------------ Run | Scr Mat Min Used RIF Installer . | . . . Robots Hacked . | . . . Non-combat . | . . . Combat . | . . . Robot Hacks Applied . | . . . Relay Couplers Released . | . . . Fabnet Peak Effective % . | . . . Robots Rewired . | . . . Allies Hacked . | . . . Hacks Repelled . | . . . Allies | -11 -10 -10 -------- Run | Scr Mat Min Total Allies 1 | . . 1 Largest Group 1 | . . 1 Highest-Rated Group 31 | . . 31 Highest-Rated Ally 31 | . . 31 Total Orders . | . . . Ally Attacks 5 | . . 5 Total Damage 84 | . . 84 Kills 1 | . . 1 Allies Corrupted . | . . . Allies Melted . | . . . Intel | -11 -10 -10 ------- Run | Scr Mat Min Robot Analysis Total 1 | . 1 . Derelict Logs Recovered 1 | . . 1 Drone Launches . | . . . Drone Recoveries . | . . . Exploration | -11 -10 -10 ------------- Run | Scr Mat Min Turns Passed 2531 | 4 1695 832 Spaces Moved 948 | 1 628 319 Core . | . . . Treads 462 | 1 461 . Legs . | . . . Wheels 486 | . 167 319 Hover . | . . . Flight . | . . . Fastest Speed 140 | 160 140 140 Average Speed 186 | 160 210 140 Slowest Speed 320 | 160 320 140 Overloaded Moves . | . . . Propulsion Burnouts . | . . . Robots Hopped . | . . . Cave-ins Triggered 1 | . . 1 Exploration Rate (%) 56 | 2 98 69 Regions Visited 2 Branch Regions 1 Pre-discovered Areas 1 | . . 1 Known Exits Taken . | . . . Unknown Exits Taken 2 | 1 1 . Scrap Searched 1 | . . 1 Spaces Dug 6 | . . 6 Terrain Destroyed 17 | . . 17 Melee . | . . . Projectile 1 | . . 1 AOE 16 | . . 16 Terrain Rammed . | . . . Walls Destroyed . | . . . Machines Disabled . | . . . Actions | -11 -10 -10 --------- Run | Scr Mat Min Total 1514 | 6 823 685 Wait 385 | . 41 344 Move 946 | . 627 319 Hop . | . . . Pick Up 22 | . 18 4 Fast Attach 5 | . 5 . Attach 7 | 2 4 1 Detach . | . . . Swap 14 | . 9 5 Drop 16 | 4 11 1 Fire 119 | . 108 11 Melee . | . . . Ram . | . . . Kick . | . . . Crush . | . . . Escape Stasis . | . . . Rewire . | . . . Trap . | . . . Miscellaneous . | . . . Route ------- -11/Scrapyard -10/Materials (discovered 4 exits: [*Mat x3] / *Min) -10/Mines (discovered 2 exits: [*Mat x2]) History --------- Turn | Location | Event 5 | -11/Scrapyard | Discovered new exit (range 0) 5 | -11/Scrapyard | Entered Materials 308 | -10/Materials | Build established: Mutant 717 | -10/Materials | Discovered new exit (range 8) 1116 | -10/Materials | Discovered new exit (range 11) 1257 | -10/Materials | Central database locked down 1267 | -10/Materials | Discovered new exit (range 8) 1355 | -10/Materials | Core integrity fell below 50% 1482 | -10/Materials | Discovered new exit (range 15) 1700 | -10/Materials | Entered Mines 1722 | -10/Mines | Found the Drone Emporium 1730 | -10/Mines | Found Prototype Device 1748 | -10/Mines | Discovered new exit (range 10) 1753 | -10/Mines | Received a Mining Laser from a helpful Derelict 1960 | -10/Mines | Learned location of Storage (-8) 2018 | -10/Mines | Discovered new exit (range 7) 2153 | -10/Mines | Assembled infested the area 2533 | -10/Mines | Crushed by falling debris 2533 | -10/Mines | Smashed by cave-in Last Messages --------------- 02153_ ALERT: Infestation in the mines, dispatching Demolisher response squad. 02155_ System corrupted: Heat flow error (+277). 02184_ System corrupted: Heat flow error (+112). 02210_ System corrupted: Matter fused (-10). 02254_ System corrupted: Heat flow error (+291). 02304_ IS |Z=J5#W J|5LAKO1